bitfinex/quotes_BTCUSD_20251009
["timestamp","ask_amount","ask_price","bid_price","bid_amount"]
[1759986130807,1.43764141,122190.0,122180.0,0.00141329]
[1759986133077,1.01297239,122190.0,122180.0,0.00141329]
[1759986133283,1.43764141,122190.0,122180.0,0.00141329]
[1759986137764,1.20628141,122190.0,122180.0,1e-08]
[1759986138205,1.43764141,122190.0,122180.0,1e-08]
[1759986138640,1.20628141,122190.0,122180.0,1e-08]
[1759986138868,1.43764141,122190.0,122180.0,1e-08]
[1759986139302,1.20628141,122190.0,122180.0,1e-08]
[1759986139489,1.43764141,122190.0,122180.0,1e-08]
[1759986139896,1.20628141,122190.0,122180.0,1e-08]
[1759986140434,1.35764461,122190.0,122180.0,1e-08]
[1759986142796,1.3493168,122190.0,122180.0,1e-08]
[1759986142999,1.1179568,122190.0,122180.0,1e-08]
[1759986143202,1.3493168,122190.0,122180.0,1e-08]
[1759986143863,1.34931904,122190.0,122180.0,1e-08]
[1759986144083,1.42931584,122190.0,122180.0,1e-08]
[1759986146551,1.42932185,122190.0,122180.0,1e-08]
[1759986148468,1.19796185,122190.0,122180.0,1e-08]
[1759986148673,1.42932185,122190.0,122180.0,1e-08]
[1759986153045,1.19796185,122190.0,122180.0,1e-08]
[1759986153228,1.42932185,122190.0,122180.0,1e-08]
[1759986154373,1.19796185,122190.0,122180.0,1e-08]
[1759986154549,1.42932185,122190.0,122180.0,1e-08]
[1759986155114,1.19796185,122190.0,122180.0,1e-08]
[1759986155323,1.42932185,122190.0,122180.0,1e-08]
[1759986155557,1.42932321,122190.0,122180.0,1e-08]
[1759986160047,1.64176995,122190.0,122180.0,1e-08]
[1759986160550,1.41040995,122190.0,122180.0,1e-08]
[1759986160781,1.00873001,122190.0,122180.0,1e-08]
[1759986164372,0.61017533,122190.0,122180.0,1e-08]
[1759986164820,0.23775265,122190.0,122180.0,0.28097221]
[1759986165041,0.19782951,122190.0,122180.0,0.10091001]
[1759986165260,0.19782951,122190.0,122180.0,0.3486393]
[1759986165480,0.19782951,122190.0,122180.0,0.33227001]
[1759986165698,0.19482951,122190.0,122180.0,0.33227001]
[1759986165916,0.19182951,122190.0,122180.0,0.01575001]
[1759986166132,0.19282951,122190.0,122180.0,0.3486393]
[1759986166348,0.53400739,122190.0,122180.0,0.10091001]
[1759986166570,0.61400419,122190.0,122180.0,0.31652001]
[1759986166811,0.61400419,122190.0,122180.0,0.23136001]
[1759986167030,0.61400419,122190.0,122180.0,0.31652001]
[1759986168105,0.29544631,122190.0,122180.0,0.31652001]
[1759986168281,0.61400419,122190.0,122180.0,0.31652001]
[1759986169342,0.53400739,122190.0,122180.0,0.08516001]
[1759986169547,0.53400739,122190.0,122180.0,0.31652001]
[1759986170722,0.21544951,122190.0,122180.0,0.31652001]
[1759986170938,0.53400739,122190.0,122180.0,0.31652001]
[1759986172713,0.001,122190.0,122180.0,0.89760286]
[1759986172950,0.001,122190.0,122180.0,1.22735074]
[1759986173185,0.001,122190.0,122180.0,1.02618264]
[1759986173653,0.00050947,122210.0,122200.0,0.16366612]
[1759986173872,0.00050947,122210.0,122200.0,0.93042245]
[1759986174082,0.00050947,122210.0,122200.0,1.17231584]
[1759986174793,0.00050947,122210.0,122200.0,0.94099584]
[1759986175010,0.00050947,122210.0,122200.0,1.59803584]
[1759986175661,0.00050947,122210.0,122200.0,1.60303584]
[1759986176087,0.00050947,122210.0,122200.0,1.17731584]
[1759986176297,0.00050947,122210.0,122200.0,1.60303584]
[1759986176717,0.00050947,122210.0,122200.0,1.51787584]
[1759986176942,0.00050947,122210.0,122200.0,1.60299584]
[1759986178013,0.00050947,122210.0,122200.0,0.94599584]
[1759986178240,0.00050947,122210.0,122200.0,1.60299584]
[1759986179555,0.00050947,122210.0,122200.0,0.96588008]
[1759986179774,0.00050947,122210.0,122200.0,1.60299584]
[1759986180219,0.00050947,122210.0,122200.0,0.94599584]
[1759986180440,0.00050947,122210.0,122200.0,1.60295584]
[1759986181125,0.00050947,122210.0,122200.0,0.30888008]
[1759986181342,0.00050947,122210.0,122200.0,1.60291584]
[1759986181559,0.00050947,122210.0,122200.0,0.94599584]
[1759986181780,0.00050947,122210.0,122200.0,1.60291584]
[1759986183510,0.00050947,122210.0,122200.0,1.51779584]
[1759986183733,0.00050947,122210.0,122200.0,1.60291584]
[1759986186646,0.00050947,122210.0,122200.0,1.37163584]
[1759986187081,0.00050947,122210.0,122200.0,1.60291584]
[1759986187772,0.00050947,122210.0,122200.0,1.62748438]
[1759986188218,0.00050947,122210.0,122200.0,1.71476226]
[1759986188443,0.00050947,122210.0,122200.0,1.39616438]
[1759986188657,0.00050947,122210.0,122200.0,1.62740438]
[1759986191058,0.00050947,122210.0,122200.0,2.28596226]
[1759986191498,0.00050947,122210.0,122200.0,2.05472226]
[1759986191708,0.00050947,122210.0,122200.0,2.28596226]
[1759986191924,0.00050947,122210.0,122200.0,1.62912226]
[1759986192136,0.00050947,122210.0,122200.0,2.62644226]
[1759986192586,0.00050947,122210.0,122200.0,1.62912226]
[1759986192834,0.00050947,122210.0,122200.0,2.41920225]
[1759986193055,0.00050947,122210.0,122200.0,2.65044225]
[1759986193495,0.00050947,122210.0,122200.0,2.65344225]
[1759986193793,0.00794847,122240.0,122230.0,0.19377785]
[1759986194027,0.00794847,122240.0,122230.0,1.01032567]
[1759986194247,0.00794847,122240.0,122230.0,0.95189567]
[1759986194696,0.00794847,122240.0,122230.0,0.97645687]
[1759986195156,0.00799872,122240.0,122230.0,1.63529687]
[1759986195357,0.00799872,122240.0,122230.0,1.31465899]
[1759986195810,0.00799936,122240.0,122230.0,1.31765899]
[1759986196203,0.00799936,122240.0,122230.0,1.31105569]
[1759986196626,0.00799936,122240.0,122230.0,0.65429569]
[1759986196835,0.02393936,122240.0,122230.0,1.30186569]
[1759986197057,0.02393936,122240.0,122230.0,0.64510569]
[1759986197296,0.19935192,122240.0,122230.0,0.75867111]
[1759986197514,0.19935192,122240.0,122230.0,1.28394779]
[1759986197727,0.19935192,122240.0,122230.0,0.14496396]
[1759986197959,0.22431192,122240.0,122230.0,1.00701589]
[1759986198175,0.55812149,122240.0,122230.0,0.74492206]
[1759986198405,0.23956361,122240.0,122230.0,0.74492206]
[1759986198631,0.23956361,122240.0,122230.0,1.22710589]
[1759986199057,0.23956361,122240.0,122230.0,1.22510589]
[1759986199486,0.24245431,122240.0,122230.0,1.22610589]
[1759986199694,0.24245431,122240.0,122230.0,0.40567994]
[1759986199933,0.24245431,122240.0,122230.0,1.06247994]
[1759986200125,0.24245431,122240.0,122230.0,1.22310589]
[1759986200372,0.02614175,122240.0,122230.0,1.59950567]
[1759986200589,0.02614175,122240.0,122230.0,1.36822567]
[1759986200801,0.01089006,122240.0,122230.0,1.36822567]
[1759986200987,0.01089006,122240.0,122230.0,1.04966779]
[1759986201321,0.01089006,122240.0,122230.0,1.3055512]
[1759986201524,0.01089006,122240.0,122230.0,1.0742312]
[1759986201737,0.01089006,122240.0,122230.0,1.3055512]
[1759986202097,0.02616845,122240.0,122230.0,1.3055512]
[1759986202715,0.01089006,122240.0,122230.0,0.98699332]
[1759986203092,0.02616753,122240.0,122230.0,1.3055512]
[1759986203522,0.02616753,122240.0,122230.0,0.6487112]
[1759986203743,0.20572009,122240.0,122230.0,1.13069525]
[1759986203948,0.20572009,122240.0,122230.0,0.51060206]
[1759986203949,0.24248009,122240.0,122230.0,0.51060206]
[1759986204154,0.24248009,122240.0,122230.0,0.74196206]
[1759986204993,0.24248009,122240.0,122230.0,0.90558801]
[1759986205207,0.24249782,122240.0,122230.0,0.67422801]
[1759986205426,0.24249782,122240.0,122230.0,0.90558801]
[1759986206090,0.24249782,122240.0,122230.0,0.74196206]
[1759986206614,0.02618526,122240.0,122230.0,1.23964589]
[1759986206833,0.02618526,122240.0,122230.0,1.01947589]
[1759986207055,0.02618526,122240.0,122230.0,1.25083589]
[1759986207276,0.01854208,122240.0,122230.0,1.25083589]
[1759986207518,0.0261865,122240.0,122230.0,1.25083589]
[1759986207714,0.0261865,122240.0,122230.0,1.04962779]
[1759986207929,0.0261865,122240.0,122230.0,1.28098779]
[1759986208859,0.0261865,122240.0,122230.0,0.96242991]
[1759986209092,0.0261865,122240.0,122230.0,1.28102779]
[1759986209301,0.01090903,122240.0,122230.0,1.28102779]
[1759986210099,0.01090903,122240.0,122230.0,1.04962779]
[1759986210285,0.01090903,122240.0,122230.0,0.71987991]
[1759986210535,0.03864903,122240.0,122230.0,1.26983779]
[1759986212973,0.02270903,122240.0,122230.0,1.26983779]
[1759986213297,0.01090903,122240.0,122230.0,1.03843779]
[1759986213513,0.01090903,122240.0,122230.0,1.28102779]
[1759986214773,0.01090903,122240.0,122230.0,1.26983779]
[1759986215535,0.56108361,122240.0,122230.0,0.77215396]
[1759986215680,0.24252573,122240.0,122230.0,0.93577991]
[1759986215890,0.24252573,122240.0,122230.0,0.65688206]
[1759986216098,0.24252573,122240.0,122230.0,0.74196206]
[1759986216765,0.31619403,122240.0,122230.0,0.74196206]
[1759986217052,0.24252573,122240.0,122230.0,0.74196206]
[1759986217260,0.24252573,122240.0,122230.0,0.90558801]
[1759986217414,0.24252573,122240.0,122230.0,0.67422801]
[1759986217639,0.21756573,122240.0,122230.0,0.92125801]
[1759986218921,0.21756573,122240.0,122230.0,0.68989801]
[1759986219100,0.22479159,122240.0,122230.0,0.74192206]
[1759986219328,0.31200533,122240.0,122230.0,0.74192206]
[1759986219571,0.24011045,122240.0,122230.0,0.74192206]
[1759986219776,0.24011045,122240.0,122230.0,0.90554801]
[1759986221230,0.22479159,122240.0,122230.0,0.74192206]
[1759986221894,0.22479159,122240.0,122230.0,0.90554801]
[1759986222332,0.22479159,122240.0,122230.0,0.74192206]
[1759986222693,0.22479159,122240.0,122230.0,0.90554801]
[1759986222893,0.22479159,122240.0,122230.0,0.76989801]
[1759986223102,0.19461717,122240.0,122230.0,0.76989801]
[1759986223304,0.19461717,122240.0,122230.0,1.00117801]
[1759986223510,0.19461717,122240.0,122230.0,0.76989801]
[1759986223714,0.21874717,122240.0,122230.0,0.83755206]
[1759986223915,0.21874717,122240.0,122230.0,0.82188206]
[1759986225412,0.21874717,122240.0,122230.0,0.98550801]
[1759986225633,0.21874717,122240.0,122230.0,0.82188206]
[1759986227119,0.21874717,122240.0,122230.0,0.98550801]
[1759986228211,0.21874717,122240.0,122230.0,0.82188206]
[1759986228835,0.19461717,122240.0,122230.0,1.00054801]
[1759986232985,0.21874717,122240.0,122230.0,0.59060206]
[1759986233191,0.21874717,122240.0,122230.0,0.82184206]
[1759986233640,0.21874717,122240.0,122230.0,0.98546801]
[1759986235620,0.21874717,122240.0,122230.0,0.82184206]
[1759986236872,0.00326461,122240.0,122230.0,1.43585604]
[1759986237032,0.00326461,122240.0,122230.0,1.20465604]
[1759986237373,0.18321717,122240.0,122230.0,0.79941991]
[1759986237576,0.19455717,122240.0,122230.0,0.85195396]
[1759986237744,0.21868717,122240.0,122230.0,0.85195396]
[1759986237986,0.21868717,122240.0,122230.0,1.01557991]
[1759986239224,0.19455717,122240.0,122230.0,0.79941991]
[1759986239431,0.16687717,122240.0,122230.0,1.03061991]
[1759986240812,0.00326461,122240.0,122230.0,1.03061991]
[1759986241026,0.16687717,122240.0,122230.0,0.79941991]
[1759986241196,0.16687717,122240.0,122230.0,1.03061991]
[1759986241414,0.18321717,122240.0,122230.0,0.79941991]
[1759986241622,0.18321717,122240.0,122230.0,0.86699396]
[1759986241937,0.19455717,122240.0,122230.0,0.86699396]
[1759986242327,0.19455717,122240.0,122230.0,1.03061991]
[1759986242593,0.00326461,122240.0,122230.0,1.04180991]
[1759986242774,0.00326461,122240.0,122230.0,0.79941991]
[1759986243015,0.18321717,122240.0,122230.0,1.22361794]
[1759986243477,0.18321717,122240.0,122230.0,1.03065991]
[1759986243705,0.18321717,122240.0,122230.0,0.79941991]
[1759986243921,0.18321717,122240.0,122230.0,1.03061991]
[1759986247477,0.19566717,122240.0,122230.0,0.21031396]
[1759986247669,0.25666842,122240.0,122230.0,0.82180206]
[1759986247859,0.21958717,122240.0,122230.0,0.82180206]
[1759986248619,0.21958717,122240.0,122230.0,0.98542801]
[1759986249478,0.21958717,122240.0,122230.0,0.82180206]
[1759986251126,0.21958717,122240.0,122230.0,0.59060206]
[1759986251322,0.21958717,122240.0,122230.0,0.82180206]
[1759986251956,0.21958717,122240.0,122230.0,0.50748]
[1759986251957,0.9837852,122240.0,122230.0,0.50748]
[1759986252151,0.9837852,122240.0,122230.0,0.73868]
[1759986252504,0.99912143,122240.0,122230.0,0.73868]
[1759986252738,0.9837852,122240.0,122230.0,0.73868]
[1759986252957,0.9837852,122240.0,122230.0,0.73768]
[1759986253169,0.9837852,122240.0,122230.0,0.73668]
[1759986253384,0.9847852,122240.0,122230.0,0.73668]
[1759986254318,0.56058717,122240.0,122230.0,0.73668]
[1759986255975,0.63246679,122240.0,122230.0,0.50548]
[1759986256182,1.05666482,122240.0,122230.0,0.73668]
[1759986256598,0.63246679,122240.0,122230.0,0.73668]
[1759986256833,0.9847852,122240.0,122230.0,0.73668]
[1759986258222,0.9847852,122240.0,122230.0,0.08]
[1759986258445,0.9847852,122240.0,122230.0,0.39628]
[1759986259337,0.9847852,122240.0,122230.0,0.16508]
[1759986259561,0.9847852,122240.0,122230.0,0.39628]
[1759986259996,1.064782,122240.0,122230.0,0.39628]
[1759986260648,0.64058397,122240.0,122230.0,0.39628]
[1759986261736,1.064782,122240.0,122230.0,0.39628]
[1759986263814,1.064782,122240.0,122230.0,0.39632]
[1759986270062,0.64058397,122240.0,122230.0,0.39632]
[1759986270283,1.064782,122240.0,122230.0,0.39632]
[1759986270949,0.9847852,122240.0,122230.0,0.39632]
[1759986271791,0.56058717,122240.0,122230.0,0.39632]
[1759986275232,0.56058717,122240.0,122230.0,0.16508]
[1759986275451,0.56058717,122240.0,122230.0,0.39632]
[1759986275878,0.53666717,122240.0,122230.0,0.41175]
[1759986276830,0.56123517,122240.0,122230.0,0.41175]
[1759986277768,0.19666717,122240.0,122230.0,0.42725801]
[1759986277981,0.16787717,122240.0,122230.0,0.66968801]
[1759986278196,0.16787717,122240.0,122230.0,0.26363206]
[1759986278197,0.18390717,122240.0,122230.0,0.26363206]
[1759986278409,0.18390717,122240.0,122230.0,0.49487206]
[1759986281031,0.22020717,122240.0,122230.0,0.49487206]
[1759986282544,0.22020717,122240.0,122230.0,0.49483206]
[1759986282738,0.22020717,122240.0,122230.0,0.65845801]
[1759986282998,0.19609717,122240.0,122230.0,0.65845801]
[1759986283210,0.19609717,122240.0,122230.0,0.49483206]
[1759986285117,0.19609717,122240.0,122230.0,0.65845801]
[1759986287101,0.19609717,122240.0,122230.0,0.49483206]
[1759986287951,0.19609717,122240.0,122230.0,0.26363206]
[1759986288175,0.53685971,122240.0,122230.0,0.39432206]
[1759986288385,0.53685971,122240.0,122230.0,0.81984206]
[1759986289052,0.53685971,122240.0,122230.0,0.73672]
[1759986290999,0.53685971,122240.0,122230.0,0.08]
[1759986291214,1.2686494,122240.0,122230.0,0.3376]
[1759986291431,1.29321877,122240.0,122230.0,0.3376]
[1759986292977,1.29321877,122240.0,122230.0,0.16508]
[1759986293426,1.29321877,122240.0,122230.0,0.39628]
[1759986298470,1.29321877,122240.0,122230.0,0.16508]
[1759986298713,1.29321877,122240.0,122230.0,0.39628]
[1759986303065,0.58329654,122240.0,122230.0,0.16508]
[1759986303285,0.90142908,122240.0,122230.0,0.39628]
[1759986304906,0.90142908,122240.0,122230.0,0.16508]
[1759986305308,0.90142908,122240.0,122230.0,0.39628]
[1759986306561,0.90142908,122240.0,122230.0,0.16508]
[1759986306763,0.90142908,122240.0,122230.0,0.39628]
[1759986307450,0.58329654,122240.0,122230.0,0.39628]
[1759986307799,0.90142908,122240.0,122230.0,0.39628]
[1759986310273,0.93556231,122240.0,122230.0,0.39628]
[1759986310710,0.61742977,122240.0,122230.0,0.39628]
[1759986310924,0.93556231,122240.0,122230.0,0.39628]
[1759986314178,0.90142908,122240.0,122230.0,0.39628]
[1759986317360,0.91676426,122240.0,122230.0,0.39628]
[1759986320228,0.91676426,122240.0,122230.0,0.16508]
[1759986320448,0.91676426,122240.0,122230.0,0.39628]
[1759986321083,0.91676426,122240.0,122230.0,0.16508]
[1759986321299,0.91676426,122240.0,122230.0,0.39628]
[1759986322917,0.91676426,122240.0,122230.0,0.49977254]
[1759986322918,0.53609717,122240.0,122230.0,0.49977254]
[1759986323118,0.53609717,122240.0,122230.0,0.73097254]
[1759986323316,0.53609717,122240.0,122230.0,0.89459849]
[1759986323481,0.53609717,122240.0,122230.0,0.57646595]
[1759986325088,0.53609717,122240.0,122230.0,0.34526595]
[1759986325380,0.53609717,122240.0,122230.0,0.89459849]
[1759986326475,0.35645461,122240.0,122230.0,0.89459849]
[1759986326695,0.34426461,122240.0,122230.0,0.90578849]
[1759986327123,0.50787717,122240.0,122230.0,0.89459849]
[1759986327587,0.52423717,122240.0,122230.0,0.89459849]
[1759986328027,0.52423717,122240.0,122230.0,0.57646595]
[1759986331310,0.54902717,122240.0,122230.0,0.34526595]
[1759986331507,0.56035717,122240.0,122230.0,0.73672]
[1759986331845,0.64035397,122240.0,122230.0,0.73672]
[1759986332047,0.87848971,122240.0,122230.0,0.90034595]
[1759986332487,0.56035717,122240.0,122230.0,0.90034595]
[1759986332665,0.87848971,122240.0,122230.0,0.24362595]
[1759986332862,0.56035717,122240.0,122230.0,0.24362595]
[1759986333070,0.56035717,122240.0,122230.0,0.90030595]
[1759986334699,0.87848971,122240.0,122230.0,0.90030595]
[1759986335954,0.56035717,122240.0,122230.0,0.90030595]
[1759986337175,0.34426461,122240.0,122230.0,0.91652595]
[1759986337393,0.34426461,122240.0,122230.0,1.23465849]
[1759986338030,0.36062461,122240.0,122230.0,1.23465849]
[1759986338260,0.36062461,122240.0,122230.0,1.31778055]
[1759986338480,0.34426461,122240.0,122230.0,1.31778055]
[1759986339424,0.00426461,122240.0,122230.0,1.09781055]
[1759986339639,0.00426461,122240.0,122230.0,1.32897055]
[1759986340115,0.00426461,122240.0,122230.0,1.12796245]
[1759986340353,0.00426461,122240.0,122230.0,1.04098991]
[1759986340592,0.00426461,122240.0,122230.0,1.38368638]
[1759986341382,0.00326461,122240.0,122230.0,1.38368638]
[1759986341590,0.00326461,122240.0,122230.0,1.38468638]
[1759986342019,0.00326461,122240.0,122230.0,1.49159786]
[1759986343182,0.00326461,122240.0,122230.0,1.26043786]
[1759986343398,0.00326461,122240.0,122230.0,1.49159786]
[1759986345955,0.00326461,122240.0,122230.0,0.41087384]
[1759986346233,0.01987461,122240.0,122230.0,1.05632384]
[1759986346522,0.05529461,122240.0,122230.0,1.04010384]
[1759986348087,0.05529461,122240.0,122230.0,1.05566384]
[1759986348948,0.03137461,122240.0,122230.0,1.05566384]
[1759986349651,0.00326461,122240.0,122230.0,1.06685384]
[1759986354395,0.00326461,122240.0,122230.0,1.49089786]
[1759986356282,0.00326461,122240.0,122230.0,1.06537786]
[1759986356486,0.00326461,122240.0,122230.0,1.49085786]
[1759986356834,0.00326461,122240.0,122230.0,1.25973786]
[1759986357039,0.00326461,122240.0,122230.0,1.06681384]
[1759986360130,0.00326461,122240.0,122230.0,1.49085786]
[1759986360340,0.00326461,122240.0,122230.0,1.25973786]
[1759986360561,0.00326461,122240.0,122230.0,1.06681384]
[1759986360778,0.00326461,122240.0,122230.0,1.49085786]
[1759986361648,0.00326461,122240.0,122230.0,1.25973786]
[1759986361866,0.00326461,122240.0,122230.0,1.49085786]
[1759986365254,0.00326461,122240.0,122230.0,1.25973786]
[1759986365415,0.00326461,122240.0,122230.0,1.49085786]
[1759986367386,0.00326461,122240.0,122230.0,1.25973786]
[1759986367581,0.00326461,122240.0,122230.0,1.49085786]
[1759986372819,0.00244524,122240.0,122230.0,1.49085786]
[1759986374827,0.00244524,122240.0,122230.0,1.49081786]
[1759986376402,0.00244524,122240.0,122230.0,0.83425786]
[1759986376619,0.00244524,122240.0,122230.0,1.40573786]
[1759986376843,0.00244524,122240.0,122230.0,1.49081786]
[1759986378457,0.00244524,122240.0,122230.0,1.25969786]
[1759986378697,0.00244524,122240.0,122230.0,1.59304984]
[1759986378928,0.00244524,122240.0,122230.0,0.93652984]
[1759986379154,0.00244524,122240.0,122230.0,1.59304984]
[1759986381662,0.00244524,122240.0,122230.0,1.36196984]
[1759986381864,0.00244524,122240.0,122230.0,1.59304984]
[1759986382695,0.00244524,122240.0,122230.0,0.85284582]
[1759986382903,0.00244524,122240.0,122230.0,1.59304984]
[1759986383360,0.00244524,122240.0,122230.0,0.93652984]
[1759986383571,0.00244524,122240.0,122230.0,1.59304984]
[1759986389645,0.00244524,122240.0,122230.0,1.36196984]
[1759986389926,0.00244524,122240.0,122230.0,1.59304984]
[1759986391047,0.00244524,122240.0,122230.0,0.51248582]
[1759986391317,0.00244524,122240.0,122230.0,1.15781582]
[1759986391548,0.00244524,122240.0,122230.0,1.05554384]
[1759986392216,0.00244524,122240.0,122230.0,0.39902384]
[1759986392650,0.03086524,122240.0,122230.0,0.82446384]
[1759986392910,0.03086524,122240.0,122230.0,1.05554384]
[1759986394952,0.03086524,122240.0,122230.0,0.82446384]
[1759986395172,0.03086524,122240.0,122230.0,1.05554384]
[1759986395611,0.1944778,122240.0,122230.0,1.05554384]
[1759986396050,0.2193478,122240.0,122230.0,0.61512599]
[1759986396279,0.2193478,122240.0,122230.0,0.98526801]
[1759986396496,0.2193478,122240.0,122230.0,0.82164206]
[1759986397670,0.2193478,122240.0,122230.0,0.98526801]
[1759986400795,0.1944778,122240.0,122230.0,1.00068801]
[1759986402176,0.00244524,122240.0,122230.0,1.20484203]
[1759986402317,0.00244524,122240.0,122230.0,1.43592203]
[1759986402723,0.00244524,122240.0,122230.0,1.46607393]
[1759986404032,0.00244524,122240.0,122230.0,1.36009536]
[1759986406281,0.00244524,122240.0,122230.0,1.12901536]
[1759986406525,0.00244524,122240.0,122230.0,1.36009536]
[1759986409265,0.00244524,122240.0,122230.0,1.34890536]
[1759986409467,0.00244524,122240.0,122230.0,1.36009536]
[1759986410410,0.00244524,122240.0,122230.0,1.01541991]
[1759986410411,0.2163478,122240.0,122230.0,1.01541991]
[1759986410633,0.2163478,122240.0,122230.0,0.75418801]
[1759986410855,0.2163478,122240.0,122230.0,0.98526801]
[1759986411276,0.2163478,122240.0,122230.0,0.82164206]
[1759986412386,0.2163478,122240.0,122230.0,0.98526801]
[1759986413064,0.53441325,122240.0,122230.0,0.082]
[1759986413288,1.20414861,122240.0,122230.0,0.16708]
[1759986413505,1.20414861,122240.0,122230.0,0.39816]
[1759986413724,1.1924787,122240.0,122230.0,0.39816]
[1759986414149,1.1924787,122240.0,122230.0,0.39716]
[1759986414895,1.1924787,122240.0,122230.0,0.39616]
[1759986415119,1.1934787,122240.0,122230.0,0.39616]
[1759986420218,0.5573478,122240.0,122230.0,0.39616]
[1759986420640,1.1934787,122240.0,122230.0,0.39616]
[1759986420845,0.62004645,122240.0,122230.0,0.39616]
[1759986421052,0.9381119,122240.0,122230.0,0.39616]
[1759986421896,1.25617735,122240.0,122230.0,0.16508]
[1759986422092,1.25617735,122240.0,122230.0,0.39616]
[1759986422480,1.25617735,122240.0,122230.0,0.16508]
[1759986422713,1.25617735,122240.0,122230.0,0.39616]
[1759986423311,1.28074686,122240.0,122230.0,0.39616]
[1759986425314,1.28074686,122240.0,122230.0,0.16508]
[1759986425521,1.28074686,122240.0,122230.0,0.39616]
[1759986428089,1.28074686,122240.0,122230.0,0.16508]
[1759986428334,1.28074686,122240.0,122230.0,0.39616]
[1759986432283,1.29605099,122240.0,122230.0,0.39616]
[1759986436765,1.23335234,122240.0,122230.0,0.39616]
[1759986439352,1.23335234,122240.0,122230.0,0.08]
[1759986439562,1.23335234,122240.0,122230.0,0.39616]
[1759986444250,1.23335234,122240.0,122230.0,0.08]
[1759986444526,0.50362595,122230.0,122220.0,0.08508]
[1759986444720,0.87314553,122230.0,122220.0,0.163]
[1759986444933,0.96940233,122230.0,122220.0,0.163]
[1759986445490,0.99397377,122230.0,122220.0,0.163]
[1759986446320,0.99497377,122230.0,122220.0,0.163]
[1759986447387,0.99697377,122230.0,122220.0,0.08508]
[1759986447619,0.99699942,122230.0,122220.0,0.31616]
[1759986447841,1.31506487,122230.0,122220.0,0.31616]
[1759986448283,1.31506487,122230.0,122220.0,0.08508]
[1759986448491,1.31506487,122230.0,122220.0,0.31616]
[1759986450021,1.31700091,122230.0,122220.0,0.31616]
[1759986452123,1.31699428,122230.0,122220.0,0.31616]
[1759986453830,1.23699748,122230.0,122220.0,0.31616]
[1759986456915,1.23699748,122230.0,122190.0,0.44801693]
[1759986456916,0.16366612,122200.0,122190.0,0.44801693]
[1759986457141,0.19069612,122200.0,122190.0,0.84733899]
[1759986457395,0.21382612,122200.0,122190.0,0.84733899]
[1759986457609,0.19069612,122200.0,122190.0,1.0272585]
[1759986457830,0.17561612,122200.0,122190.0,0.96106347]
[1759986458244,0.16366612,122200.0,122190.0,0.96111372]
[1759986458451,0.16366612,122200.0,122190.0,0.96711372]
[1759986460481,0.17874612,122200.0,122190.0,0.96711372]
[1759986460820,0.19069612,122200.0,122190.0,0.96711372]
[1759986462361,0.50916952,122200.0,122190.0,0.75704231]
[1759986462585,0.85036497,122200.0,122190.0,0.43165025]
[1759986462816,0.85036497,122200.0,122190.0,0.66273025]
[1759986463445,1.19036497,122200.0,122190.0,0.08917025]
[1759986463668,1.19036497,122200.0,122190.0,0.32025025]
[1759986463881,1.19036497,122200.0,122190.0,0.31725025]
[1759986464094,0.97888441,122200.0,122190.0,0.31925025]
[1759986464310,0.99419043,122200.0,122190.0,0.31625025]
[1759986464732,1.02176787,122200.0,122190.0,0.31625025]
[1759986464975,1.02176787,122200.0,122190.0,5.025e-05]
[1759986465464,1.02175362,122200.0,122190.0,5.025e-05]
[1759986466145,1.02175362,122200.0,122190.0,0.08673025]
[1759986466377,1.02174959,122200.0,122190.0,0.08673025]
[1759986467309,1.00646185,122200.0,122190.0,0.08673025]
[1759986467542,1.02174647,122200.0,122190.0,0.08673025]
[1759986468395,1.02174353,122200.0,122190.0,0.08673025]
[1759986469312,1.02174184,122200.0,122190.0,0.08673025]
[1759986473371,1.02174184,122200.0,122190.0,5.025e-05]
[1759986473573,1.02174184,122200.0,122190.0,0.15725025]
[1759986475409,1.10173864,122200.0,122190.0,5.025e-05]
[1759986475613,1.10173864,122200.0,122190.0,0.21885025]
[1759986476062,0.6770883,122200.0,122190.0,0.23117025]
[1759986476284,1.10173864,122200.0,122190.0,0.23117025]
[1759986476568,1.02174184,122200.0,122190.0,0.23117025]
[1759986477440,1.02174184,122200.0,122190.0,5.025e-05]
[1759986477649,1.02174184,122200.0,122190.0,0.23117025]
[1759986478775,1.02173461,122200.0,122190.0,0.23117025]
[1759986482898,1.0217378,122200.0,122190.0,0.23117025]
[1759986483102,1.1017346,122200.0,122190.0,5.025e-05]
[1759986483310,1.1017346,122200.0,122190.0,0.07781025]
[1759986483922,1.1017346,122200.0,122190.0,5.025e-05]
[1759986485047,1.0217378,122200.0,122190.0,5.025e-05]
[1759986486613,1.00646185,122200.0,122190.0,5.025e-05]
[1759986486838,1.02174588,122200.0,122190.0,5.025e-05]
[1759986489520,1.02939276,122200.0,122190.0,5.025e-05]
[1759986491498,1.02939919,122200.0,122190.0,5.025e-05]
[1759986493750,1.09151589,122200.0,122190.0,5.025e-05]
[1759986493960,1.02939919,122200.0,122190.0,5.025e-05]
[1759986501476,1.45404953,122200.0,122190.0,5.025e-05]
[1759986502851,1.45408329,122200.0,122190.0,5.025e-05]
[1759986503999,1.02943295,122200.0,122190.0,5.025e-05]
[1759986504757,1.10942975,122200.0,122190.0,5.025e-05]
[1759986506046,1.09411196,122200.0,122190.0,5.025e-05]
[1759986506260,1.10942938,122200.0,122190.0,5.025e-05]
[1759986507369,1.02177927,122200.0,122190.0,5.025e-05]
[1759986514798,1.02178058,122200.0,122190.0,5.025e-05]
[1759986515463,1.02943913,122200.0,122190.0,5.025e-05]
[1759986515888,1.02943769,122200.0,122190.0,5.025e-05]
[1759986517861,1.45408803,122200.0,122190.0,5.025e-05]
[1759986518081,1.53408483,122200.0,122190.0,5.025e-05]
[1759986522214,1.84828689,122200.0,122190.0,5.025e-05]
[1759986522524,1.61720689,122200.0,122190.0,5.025e-05]
[1759986522728,1.84828689,122200.0,122190.0,5.025e-05]
[1759986524220,1.61720689,122200.0,122190.0,5.025e-05]
[1759986524440,1.84828689,122200.0,122190.0,5.025e-05]
[1759986526041,1.95462244,122200.0,122190.0,5.025e-05]
[1759986532496,1.72354244,122200.0,122190.0,5.025e-05]
[1759986532912,1.95462244,122200.0,122190.0,5.025e-05]
[1759986537542,1.72354244,122200.0,122190.0,5.025e-05]
[1759986537762,1.95462244,122200.0,122190.0,5.025e-05]
[1759986545668,0.99898621,122200.0,122190.0,5.025e-05]
[1759986545867,1.87462564,122200.0,122190.0,5.025e-05]
[1759986547885,1.64354564,122200.0,122190.0,5.025e-05]
[1759986548087,1.87462564,122200.0,122190.0,5.025e-05]
[1759986548846,1.87462488,122200.0,122190.0,5.025e-05]
[1759986549692,1.95462168,122200.0,122190.0,5.025e-05]
[1759986551067,1.72354168,122200.0,122190.0,5.025e-05]
[1759986551274,1.95462168,122200.0,122190.0,5.025e-05]
[1759986551477,1.72354168,122200.0,122190.0,5.025e-05]
[1759986551679,1.95462168,122200.0,122190.0,5.025e-05]
[1759986556461,1.72354168,122200.0,122190.0,5.025e-05]
[1759986556663,1.95462168,122200.0,122190.0,5.025e-05]
[1759986557553,1.72354168,122200.0,122190.0,5.025e-05]